bitfinex/quotes_SOLUSD_20240902
["timestamp","ask_amount","ask_price","bid_price","bid_amount"]
[1725246359475,7.6559,130.62,130.58,19.144]
[1725246360071,7.6552,130.63,130.59,1.53121626]
[1725246360266,7.6546,130.64,130.59,7.657]
[1725246360444,7.6546,130.64,130.58,19.144]
[1725246360648,8.5421262,130.63,130.58,19.144]
[1725246361258,7.6569,130.61,130.55,65.1078]
[1725246361456,7.6577,130.59,130.55,19.1491]
[1725246362167,7.6605,130.54,130.49,7.6629]
[1725246362381,7.6594,130.56,130.51,7.6617]
[1725246362689,7.6599,130.55,130.51,7.6617]
[1725246362970,7.6593,130.56,130.52,9.19364955]
[1725246363171,7.6603,130.55,130.49,19.1577]
[1725246363477,7.6593,130.56,130.51,7.6621]
[1725246363769,0.8869262,130.55,130.51,7.6621]
[1725246364359,8.5462262,130.56,130.51,7.6621]
[1725246365075,8.5462262,130.56,130.52,7.6616]
[1725246365460,0.8869262,130.55,130.51,7.6621]
[1725246366190,8.5462262,130.56,130.51,7.6621]
[1725246366564,8.5462262,130.56,130.47,61.0582]
[1725246366565,21.9995,130.58,130.47,61.0582]
[1725246366767,22.8864262,130.62,130.52,45.0]
[1725246366950,22.8864262,130.62,130.54,19.1498]
[1725246367277,22.8864262,130.62,130.53,7.6609]
[1725246367278,7.6586,130.58,130.53,7.6609]
[1725246367457,0.8869262,130.57,130.53,7.6609]
[1725246367664,7.6594,130.56,130.52,7.6615]
[1725246368256,0.8869262,130.55,130.48,19.1595]
[1725246368478,7.6612,130.53,130.49,7.6633]
[1725246368769,0.8869262,130.55,130.5,1.53233364]
[1725246368969,0.8869262,130.55,130.5,19.1558]
[1725246369181,0.8869262,130.55,130.51,7.6617]
[1725246369557,8.5469262,130.55,130.5,26.8185]
[1725246369881,7.658,130.59,130.54,7.6603]
[1725246370179,0.8869262,130.6,130.54,7.6603]
[1725246370382,7.6576,130.59,130.54,7.6603]
[1725246370881,0.8869262,130.6,130.56,7.6588]
[1725246371191,8.5438262,130.61,130.56,7.6588]
[1725246371479,30.5422262,130.62,130.58,7.658]
[1725246371683,30.5422262,130.62,130.56,19.1473]
[1725246371893,30.5422262,130.62,130.57,7.6586]
[1725246372057,30.5422262,130.62,130.51,61.02963673]
[1725246372058,7.6578,130.59,130.53,19.1526]
[1725246372258,7.6578,130.59,130.54,45.0]
[1725246372478,7.657,130.6,130.55,7.6597]
[1725246372679,8.5439262,130.6,130.55,7.6597]
[1725246373171,0.8869262,130.6,130.53,26.813]
[1725246373559,7.6581,130.58,130.54,7.6604]
[1725246373758,0.8869262,130.57,130.53,26.8134]
[1725246375259,8.5457262,130.57,130.53,19.1526]
[1725246375584,0.8869262,130.56,130.5,19.1563]
[1725246375761,7.6604,130.55,130.5,26.8186]
[1725246376466,7.6604,130.55,130.51,7.6621]
[1725246376663,7.6604,130.55,130.51,9.19426325]
[1725246376878,0.8869262,130.54,130.51,7.6621]
[1725246377570,8.5473262,130.55,130.51,7.6621]
[1725246377775,0.8869262,130.54,130.51,7.6621]
[1725246378177,0.8869262,130.54,130.5,26.819]
[1725246378863,8.5473262,130.55,130.5,26.819]
[1725246379978,0.8869262,130.54,130.5,26.819]
[1725246381781,0.8869262,130.54,130.47,19.1606]
[1725246382065,0.8869262,130.54,130.48,7.6639]
[1725246382066,7.6617,130.52,130.48,7.6639]
[1725246382586,14.9296262,130.54,130.5,7.6626]
[1725246383667,14.9296262,130.54,130.49,26.8211]
[1725246385065,7.6611,130.53,130.49,19.1579]
[1725246385278,0.8869262,130.52,130.49,19.1579]
[1725246385472,7.6611,130.53,130.49,28.35359257]
[1725246385698,14.0423,130.54,130.49,26.8211]
[1725246386071,0.8869262,130.53,130.49,26.8211]
[1725246386471,8.5479262,130.53,130.49,26.8211]
[1725246386673,8.5479262,130.53,130.49,19.1579]
[1725246386875,7.6617,130.52,130.49,19.1579]
[1725246387169,7.6617,130.52,130.44,70.00259431]
[1725246387170,7.6617,130.52,130.47,7.6644]
[1725246387480,8.5481262,130.53,130.48,7.6639]
[1725246388577,8.5481262,130.53,130.49,7.6633]
[1725246390188,8.5481262,130.53,130.48,7.6638]
[1725246390768,31.67319431,130.55,130.46,19.162]
[1725246390769,7.6592,130.57,130.52,7.6616]
[1725246390968,0.8869262,130.57,130.53,7.6609]
[1725246391169,6.5118,130.58,130.54,7.66]
[1725246391368,7.6576,130.59,130.54,7.66]
[1725246391899,7.6576,130.59,130.55,7.6598]
[1725246392479,0.8869262,130.58,130.53,7.6605]
[1725246392680,0.8869262,130.6,130.54,65.68216823]
[1725246392878,7.3987262,130.61,130.54,65.68216823]
[1725246393082,6.5118,130.61,130.54,46.53186823]
[1725246393281,6.5118,130.61,130.55,0.25098]
[1725246393476,16.7121262,130.62,130.55,46.78231947]
[1725246393682,0.8869262,130.63,130.55,46.78231947]
[1725246393882,7.3987262,130.64,130.58,19.1447]
[1725246394788,7.3987262,130.64,130.6,7.6564]
[1725246394988,6.5118,130.64,130.6,7.6564]
[1725246395676,14.1667,130.64,130.59,7.6574]
[1725246395979,6.5118,130.64,130.59,7.6574]
[1725246396484,0.8869262,130.63,130.59,7.6574]
[1725246397511,8.5422262,130.63,130.58,19.1447]
[1725246397678,7.6558,130.62,130.55,19.1491]
[1725246397877,0.8869262,130.61,130.56,7.6588]
[1725246398375,0.8869262,130.61,130.57,7.6587]
[1725246398895,8.5433262,130.61,130.56,7.6592]
[1725246399095,7.657,130.6,130.55,19.1491]
[1725246399299,0.8869262,130.59,130.55,19.1491]
[1725246399486,31.67319431,130.62,130.55,19.1491]
[1725246399487,0.8869262,130.61,130.55,19.1491]
[1725246399791,0.8869262,130.6,130.52,19.1536]
[1725246399994,7.6582,130.58,130.53,7.6606]
[1725246400197,0.8869262,130.6,130.52,19.1536]
[1725246400198,7.6576,130.59,130.54,7.6604]
[1725246400504,0.8869262,130.58,130.54,7.6604]
[1725246401508,7.6592,130.57,130.52,19.1536]
[1725246401682,0.8869262,130.56,130.52,19.1536]
[1725246402393,14.7820262,130.57,130.53,1.53218738]
[1725246402585,14.7820262,130.57,130.53,7.661]
[1725246403002,7.1232262,130.57,130.53,7.6605]
[1725246403182,7.1232262,130.57,130.52,19.1536]
[1725246403593,7.1232262,130.57,130.53,7.6609]
[1725246403900,14.7820262,130.57,130.52,26.8148]
[1725246404104,7.6593,130.56,130.51,7.662]
[1725246404405,8.5468262,130.55,130.51,7.662]
[1725246404584,7.6605,130.54,130.5,7.6627]
[1725246404788,0.8869262,130.53,130.49,19.1577]
[1725246405003,8.5480262,130.53,130.48,7.6634]
[1725246405308,0.8869262,130.53,130.49,7.6633]
[1725246405806,0.8869262,130.53,130.47,7.6644]
[1725246406004,0.8869262,130.55,130.47,7.6644]
[1725246406220,0.8869262,130.54,130.47,7.6644]
[1725246406511,7.6626,130.51,130.46,26.8278]
[1725246406687,0.8869262,130.5,130.46,26.8278]
[1725246407301,8.5498262,130.5,130.46,19.1629]
[1725246407700,0.8869262,130.5,130.46,26.8279]
[1725246409311,7.1244262,130.5,130.46,26.8279]
[1725246411409,14.7872262,130.5,130.46,26.8279]
[1725246412205,7.662,130.52,130.46,19.1629]
[1725246413078,7.662,130.52,130.47,7.6643]
[1725246413079,0.8869262,130.51,130.47,7.6643]
[1725246413303,8.5497262,130.51,130.46,26.8279]
[1725246414599,0.8869262,130.51,130.47,7.6645]
[1725246415487,8.5492262,130.51,130.47,7.6645]
[1725246416498,0.8869262,130.52,130.48,19.1586]
[1725246416813,6.1504,130.53,130.48,19.1586]
[1725246416814,7.0373262,130.53,130.5,7.6627]
[1725246417113,6.1504,130.53,130.51,7.6621]
[1725246417318,7.6594,130.56,130.5,19.1563]
[1725246417505,0.8869262,130.55,130.51,7.662]
[1725246418014,0.8869262,130.55,130.5,19.1563]
[1725246418206,14.3033,130.57,130.47,77.87780256]
[1725246418207,0.8869262,130.56,130.52,19.1535]
[1725246418515,0.8869262,130.59,130.53,1.53193866]
[1725246418837,0.8869262,130.59,130.56,7.6592]
[1725246418997,7.5233262,130.6,130.56,7.6592]
[1725246419807,7.5233262,130.6,130.57,7.6586]
[1725246420203,6.6364,130.6,130.58,7.658]
[1725246420393,0.8869262,130.59,130.56,19.1474]
[1725246420933,0.8869262,130.59,130.56,26.8065]
[1725246421247,0.8869262,130.59,130.56,19.1474]
[1725246422316,14.2934,130.6,130.57,7.6582]
[1725246422317,6.6364,130.6,130.57,7.6582]
[1725246422496,0.8869262,130.61,130.57,7.6582]
[1725246423297,0.8869262,130.61,130.58,7.6581]
[1725246424124,7.1936262,130.64,130.6,7.6569]
[1725246424719,7.6553,130.63,130.58,26.8025]
[1725246424911,8.5427262,130.62,130.58,19.1446]
[1725246425915,0.8869262,130.61,130.58,19.1446]
[1725246426710,0.8869262,130.63,130.59,7.6574]
[1725246427013,0.8869262,130.63,130.6,7.6567]
[1725246427726,7.6559,130.62,130.58,26.8026]
[1725246427934,0.8869262,130.61,130.58,26.8026]
[1725246428424,8.5432262,130.61,130.58,19.1446]
[1725246428811,0.8869262,130.61,130.58,26.8026]
[1725246429516,8.5431262,130.62,130.58,19.1446]
[1725246430428,8.5422262,130.63,130.59,7.6574]
[1725246430724,8.5422262,130.63,130.58,19.1446]
[1725246430725,0.8869262,130.63,130.58,19.1446]
[1725246431507,0.8869262,130.63,130.59,7.6573]
[1725246432142,8.5422262,130.63,130.58,19.1446]
[1725246432426,8.5422262,130.63,130.53,38.3026]
[1725246432427,7.6597,130.56,130.51,7.6619]
[1725246432605,47.64037541,130.59,130.5,19.1561]
[1725246432808,7.6593,130.56,130.51,7.6617]
[1725246433008,16.0132262,130.59,130.55,7.6599]
[1725246433336,16.0132262,130.59,130.53,19.1524]
[1725246433337,0.8869262,130.59,130.53,19.1524]
[1725246433636,0.8869262,130.59,130.54,7.66]
[1725246434010,0.8869262,130.59,130.51,7.6617]
[1725246434311,32.51407541,130.59,130.51,7.6617]
[1725246434829,6.5836,130.58,130.51,7.6617]
[1725246435015,0.8869262,130.57,130.51,7.6617]
[1725246435335,7.6593,130.56,130.51,7.6617]
[1725246435504,0.8869262,130.55,130.51,7.6617]
[1725246435706,8.5468262,130.55,130.51,7.6617]
[1725246436010,0.8869262,130.54,130.51,7.6617]
[1725246436914,0.8869262,130.54,130.5,26.8195]
[1725246437430,0.8869262,130.55,130.51,7.6621]
[1725246438918,8.5462262,130.56,130.52,7.6616]
[1725246439139,8.5462262,130.56,130.51,7.662]
[1725246439937,0.8869262,130.55,130.51,7.662]
[1725246440328,0.8869262,130.57,130.53,7.6609]
[1725246440516,0.8869262,130.57,130.52,19.1533]
[1725246440517,6.5836,130.58,130.55,7.6597]
[1725246440717,8.5440262,130.6,130.55,7.6597]
[1725246441221,0.8869262,130.6,130.57,7.6585]
[1725246441528,14.9115262,130.61,130.56,26.8068]
[1725246441729,7.2551262,130.61,130.58,19.1439]
[1725246441946,7.2551262,130.61,130.58,26.802]
[1725246442114,7.2551262,130.61,130.58,19.1439]
[1725246442443,0.8869262,130.6,130.58,19.1439]
[1725246442624,14.9114262,130.61,130.58,19.1439]
[1725246443147,7.6553,130.63,130.58,26.8018]
[1725246443317,0.8869262,130.62,130.58,26.8018]
[1725246443713,6.1373,130.65,130.58,19.1439]
[1725246443714,0.8869262,130.64,130.58,19.1439]
[1725246443941,0.8869262,130.64,130.6,7.6569]
[1725246444127,8.5415262,130.64,130.59,7.6574]
[1725246444340,6.1373,130.65,130.58,19.1439]
[1725246444341,7.0242262,130.65,130.62,7.6556]
[1725246444523,0.8869262,130.65,130.62,7.6556]
[1725246444850,7.6536,130.66,130.62,7.6556]
[1725246445016,7.6529,130.67,130.63,7.6551]
[1725246445220,0.8869262,130.68,130.63,7.6551]
[1725246445221,8.5393262,130.68,130.63,7.6551]
[1725246446947,0.8869262,130.67,130.62,7.6557]
[1725246448019,0.8869262,130.66,130.6,26.798]
[1725246448221,7.6542,130.65,130.61,7.6563]
[1725246448413,0.8869262,130.64,130.61,7.6563]
[1725246449341,0.8869262,130.64,130.6,26.7984]
[1725246450730,8.5417262,130.64,130.6,19.1416]
[1725246450931,0.8869262,130.64,130.6,19.1416]
[1725246451120,0.8869262,130.67,130.6,19.1416]
[1725246451844,7.6558,130.62,130.57,26.8044]
[1725246452020,8.5433262,130.61,130.57,26.8044]
[1725246452221,7.6564,130.61,130.57,26.8044]
[1725246452748,0.8869262,130.61,130.57,26.8044]
[1725246454542,14.244,130.62,130.53,22.787]
[1725246454543,7.4751262,130.66,130.6,31.62714921]
[1725246454742,16.4376,130.68,130.64,19.1358]
[1725246455049,16.4376,130.68,130.65,7.6539]
[1725246455263,6.5882,130.69,130.65,7.6539]
[1725246456533,16.4376,130.72,130.68,7.6522]
[1725246456731,17.3245262,130.72,130.67,1.53025159]
[1725246457048,17.3245262,130.72,130.63,19.1374]
[1725246457638,0.8869262,130.72,130.65,19.134]
[1725246457960,7.6504,130.72,130.66,1.53032938]
[1725246458259,0.8869262,130.71,130.66,1.53032938]
[1725246458560,8.5373262,130.72,130.66,1.53032938]
[1725246458746,22.9064,130.74,130.64,84.46800534]
[1725246458747,0.8869262,130.73,130.67,20.49528857]
[1725246459059,0.8869262,130.76,130.73,7.6492]
[1725246459239,0.8869262,130.77,130.71,1.52974903]
[1725246459440,6.3186,130.78,130.71,1.52974903]
[1725246459441,6.3186,130.78,130.72,39.46800534]
[1725246459649,0.8869262,130.8,130.7,0.12549]
[1725246459650,6.3186,130.82,130.76,7.647]
[1725246459957,0.8869262,130.81,130.76,19.1181]
[1725246460130,7.6453,130.8,130.74,7.6483]
[1725246460336,6.3186,130.82,130.74,1.52932504]
[1725246460659,6.3186,130.82,130.77,7.6465]
[1725246460854,6.3186,130.82,130.78,1.52902746]
[1725246461156,6.3186,130.82,130.73,0.12549]
[1725246461157,0.8869262,130.81,130.76,1.52883753]
[1725246461358,0.8869262,130.81,130.72,38.2479]
[1725246461359,0.8869262,130.85,130.75,19.119]
[1725246461535,0.8869262,130.85,130.76,45.0]
[1725246461857,0.8869262,130.85,130.77,19.1162]
[1725246462035,7.6437,130.83,130.77,26.7631]
[1725246462354,8.5312262,130.82,130.77,26.7631]
[1725246462558,8.5311262,130.82,130.77,7.6469]
[1725246462938,7.6442,130.82,130.77,7.6469]
[1725246463338,8.5304262,130.83,130.77,7.6469]
[1725246463547,8.5310262,130.82,130.77,7.6469]
[1725246464055,8.5310262,130.82,130.73,39.46800534]
[1725246464056,7.6435,130.83,130.78,7.6461]
[1725246464554,8.5296262,130.85,130.8,7.6451]
[1725246464752,8.5296262,130.85,130.79,7.6458]
[1725246464960,7.6432,130.84,130.79,7.6458]
[1725246465147,8.5304262,130.83,130.78,26.7611]
[1725246465351,0.8869262,130.85,130.79,7.6457]
[1725246465658,0.8869262,130.85,130.79,9.17451924]
[1725246465959,0.8869262,130.85,130.78,19.1148]
[1725246467155,7.6446,130.81,130.76,7.6474]
[1725246467359,0.8869262,130.8,130.76,7.6474]
[1725246467659,0.8869262,130.83,130.76,1.52925639]
[1725246467859,39.46800534,130.84,130.75,19.1202]
[1725246467860,0.8869262,130.82,130.75,19.1202]
[1725246469957,7.6458,130.79,130.75,26.7683]
[1725246470161,0.8869262,130.82,130.72,20.65395683]
[1725246470547,7.6448,130.81,130.74,19.1207]
[1725246470746,0.8869262,130.8,130.75,1.52922898]
[1725246470967,0.8869262,130.8,130.76,7.6475]
[1725246471172,7.6459,130.79,130.74,19.1207]
[1725246471473,7.6459,130.79,130.75,1.52935722]
[1725246471842,0.8869262,130.82,130.76,1.52936017]
[1725246472160,7.6446,130.82,130.77,19.1173]
[1725246472456,8.5316262,130.81,130.77,19.1173]
[1725246472660,0.8869262,130.8,130.74,19.1213]
[1725246473182,7.6459,130.79,130.74,19.1213]
[1725246473484,8.5322262,130.8,130.75,7.648]
[1725246473845,8.5322262,130.8,130.75,9.17736326]
[1725246474244,8.5322262,130.8,130.75,7.648]
[1725246474448,7.6458,130.79,130.75,7.648]
[1725246474648,8.5322262,130.8,130.75,7.648]
[1725246475370,8.5322262,130.8,130.75,9.17735783]
[1725246475668,8.5322262,130.8,130.75,7.648]
[1725246476870,8.5322262,130.8,130.72,39.46800534]
[1725246476871,15.2699,130.81,130.77,7.647]
[1725246477164,0.8869262,130.8,130.77,7.647]
[1725246477402,7.6446,130.82,130.77,7.647]
[1725246477542,0.8869262,130.84,130.79,7.6454]
[1725246477742,0.8869262,130.84,130.8,9.17390903]
[1725246478072,8.5298262,130.84,130.79,7.6458]
[1725246478373,7.6437,130.83,130.78,26.7616]
[1725246478572,8.5299262,130.84,130.79,9.17472996]
[1725246479274,8.5299262,130.84,130.79,7.6457]
[1725246479468,0.8869262,130.84,130.8,7.6452]
[1725246480066,7.6436,130.83,130.78,26.7616]
[1725246480257,0.8869262,130.82,130.78,26.7616]
[1725246480572,8.5311262,130.82,130.77,7.6469]
[1725246481084,8.5311262,130.82,130.75,19.1203]
[1725246481085,7.6436,130.83,130.78,9.17555305]
[1725246481370,8.5299262,130.84,130.77,19.1168]
[1725246481552,0.8869262,130.85,130.79,19.1139]
[1725246481742,6.5347,130.86,130.81,19.1107]
[1725246481946,0.8869262,130.88,130.81,19.1107]
[1725246482960,7.6413,130.87,130.82,7.6439]
[1725246483162,0.8869262,130.86,130.82,7.6439]
[1725246484964,21.968,130.89,130.83,20.63580505]
[1725246484965,22.8549262,130.89,130.83,20.63580505]
[1725246485271,21.968,130.89,130.85,7.6422]
[1725246485443,22.8549262,130.89,130.85,7.6422]
[1725246486372,30.4951262,130.89,130.84,7.6428]
[1725246486579,29.6082,130.89,130.84,7.6428]
[1725246486862,0.8869262,130.88,130.85,7.6421]
[1725246487067,0.8869262,130.88,130.8,38.2245]
[1725246487256,6.189,130.89,130.86,7.6417]
[1725246487571,0.8869262,130.9,130.86,7.6417]
[1725246487872,7.64,130.89,130.84,26.749]
[1725246488248,7.64,130.89,130.85,1.5281936]
[1725246488477,7.64,130.89,130.85,9.1703936]
[1725246488769,7.64,130.89,130.85,7.6422]
[1725246488968,0.8869262,130.88,130.84,26.7494]
[1725246489171,7.64,130.89,130.85,9.17052596]
[1725246489347,7.64,130.89,130.85,7.6422]
[1725246490370,7.64,130.89,130.8,38.2245]
[1725246490371,7.6451,130.81,130.75,16.1135]
[1725246490569,21.7786,130.87,130.8,7.6447]
[1725246490771,7.6446,130.81,130.76,7.6471]
[1725246491072,19.9919262,130.86,130.75,35.2327]
[1725246491456,19.9919262,130.86,130.77,19.1166]
[1725246491771,19.9919262,130.86,130.79,7.6456]
[1725246491984,7.6429,130.85,130.8,7.6451]
[1725246492153,0.8869262,130.86,130.8,1.52860996]
[1725246492347,7.6424,130.85,130.79,19.1138]
[1725246493347,7.6424,130.85,130.8,7.6452]
[1725246495449,8.5300262,130.84,130.79,26.7595]
[1725246495654,0.8869262,130.84,130.78,7.6463]
[1725246495951,39.46800534,130.86,130.78,7.6463]
[1725246495952,7.6435,130.83,130.78,7.6463]
[1725246496261,0.8869262,130.82,130.78,7.6463]
[1725246496463,8.5311262,130.82,130.77,7.6468]
[1725246496785,8.5311262,130.82,130.78,7.6463]
[1725246497853,8.5311262,130.82,130.77,7.6469]
[1725246500674,7.6448,130.81,130.76,26.7658]
[1725246500878,7.6448,130.81,130.77,7.6469]
[1725246501174,0.8869262,130.86,130.83,7.6434]
[1725246501385,0.8869262,130.86,130.81,26.7553]
[1725246501560,8.5288262,130.86,130.81,26.7553]
[1725246504352,7.6425,130.85,130.81,19.1111]
[1725246504577,0.8869262,130.84,130.81,19.1111]
[1725246504874,8.5301262,130.84,130.79,7.6455]
[1725246505051,7.6432,130.84,130.79,7.6455]
[1725246505254,0.8869262,130.83,130.79,7.6455]
[1725246506261,8.5304262,130.83,130.78,26.7623]
[1725246506664,7.6441,130.82,130.78,19.116]
[1725246508481,7.6441,130.82,130.78,20.64500158]
[1725246508668,7.6441,130.82,130.78,19.116]
[1725246511883,7.6423,130.85,130.81,7.6446]
[1725246512890,7.6423,130.85,130.8,26.7578]
[1725246513872,8.5299262,130.84,130.8,19.1126]
[1725246514065,7.6435,130.83,130.79,7.6456]
[1725246514664,7.6441,130.82,130.78,7.6463]
[1725246514870,19.1051,130.86,130.77,19.1166]
[1725246515203,39.46800534,130.84,130.76,7.6474]
[1725246515492,7.6447,130.81,130.77,7.6469]
[1725246516190,0.8869262,130.83,130.77,7.6469]
[1725246516487,7.6441,130.82,130.78,7.6463]
[1725246516689,0.8869262,130.81,130.78,19.1154]
[1725246517103,8.5310262,130.82,130.78,19.1154]
[1725246517969,8.5318262,130.81,130.77,7.6468]
[1725246518282,7.6453,130.8,130.75,26.7678]
[1725246518968,7.6453,130.8,130.76,7.6474]
[1725246521382,7.6453,130.8,130.75,19.1198]
[1725246521383,0.8869262,130.79,130.75,26.7678]
[1725246521580,7.647,130.77,130.73,7.6491]
[1725246521769,0.8869262,130.76,130.72,26.774]
[1725246521967,0.8869262,130.76,130.69,19.1289]
[1725246522267,31.53503173,130.74,130.65,15.6251]
[1725246522467,6.3755,130.72,130.63,19.1374]
[1725246522686,8.5376262,130.71,130.65,7.6535]
[1725246523464,8.5376262,130.71,130.66,7.6531]
[1725246523982,7.6519,130.69,130.63,26.7922]
[1725246524180,0.8869262,130.71,130.65,7.6538]
[1725246524689,0.8869262,130.71,130.66,19.1335]
[1725246525278,8.5374262,130.71,130.66,26.7864]
[1725246526595,14.9123262,130.72,130.67,7.6525]
[1725246526893,7.6505,130.71,130.66,26.7867]
[1725246527596,7.2624262,130.72,130.66,26.7867]
[1725246527597,14.9123262,130.72,130.66,26.7867]
[1725246528188,7.6518,130.69,130.64,7.6543]
[1725246528380,0.8869262,130.68,130.64,7.6543]
[1725246528983,8.5396262,130.68,130.63,19.1378]
[1725246529292,0.8869262,130.67,130.63,19.1378]
[1725246529682,0.8869262,130.67,130.63,26.793]
[1725246529996,0.8869262,130.67,130.6,19.1419]
[1725246530203,0.8869262,130.69,130.6,19.1419]
[1725246530406,39.47946513,130.68,130.6,19.1419]
[1725246530699,0.8869262,130.67,130.6,19.1419]
[1725246530896,0.8869262,130.69,130.6,19.1419]
[1725246532197,7.6531,130.67,130.63,7.6552]
[1725246532414,0.8869262,130.69,130.65,7.6538]
[1725246533695,8.5386262,130.69,130.65,7.6538]
[1725246533897,7.6517,130.69,130.65,7.6538]
[1725246534100,7.6517,130.69,130.64,26.7902]
[1725246534101,0.8869262,130.68,130.64,26.7902]
[1725246534409,8.5392262,130.68,130.64,26.7902]
[1725246534581,0.8869262,130.68,130.64,26.7902]
[1725246534902,7.6517,130.69,130.64,26.7902]
[1725246536323,6.3755,130.72,130.68,7.652]
[1725246536598,7.2624262,130.72,130.68,7.652]
[1725246537177,7.2624262,130.72,130.69,7.6516]
[1725246537599,6.3755,130.72,130.69,7.6516]
[1725246537790,6.3755,130.72,130.69,9.18165291]
[1725246538182,0.8869262,130.71,130.64,19.1355]
[1725246538400,0.8869262,130.71,130.63,39.47946513]
[1725246538401,0.8869262,130.71,130.67,7.6527]
[1725246538608,0.8869262,130.71,130.68,1.53027367]
[1725246538808,6.3755,130.72,130.69,1.53027338]
[1725246539103,16.0538,130.73,130.7,7.6506]
[1725246539316,16.0538,130.73,130.68,19.1297]
[1725246539620,16.0538,130.73,130.7,19.1267]
[1725246539906,16.0538,130.73,130.7,26.7777]
[1725246540801,6.0549,130.75,130.71,7.6501]
[1725246540802,6.9418262,130.75,130.71,7.6501]
[1725246541303,16.1636,130.76,130.72,20.65373358]
[1725246541503,16.1636,130.76,130.73,7.6489]
[1725246542797,14.0018,130.78,130.73,7.6489]
[1725246543198,6.3549,130.78,130.75,7.6481]
[1725246543704,6.3549,130.78,130.77,7.647]
[1725246543905,17.0447262,130.79,130.76,26.7659]
[1725246544403,17.0447262,130.79,130.76,19.1184]
[1725246546508,16.1578,130.79,130.76,20.64776852]
[1725246546818,16.1578,130.79,130.76,26.7658]
[1725246548523,7.6453,130.8,130.76,26.7658]
[1725246548705,6.5757,130.81,130.62,89.47946513]
[1725246548706,8.5328262,130.79,130.74,7.6482]
[1725246549306,0.8869262,130.79,130.73,19.1225]
[1725246549621,55.40846513,130.82,130.64,321.1301]
[1725246549622,39.47946513,130.76,130.66,6.5151]
[1725246549811,7.0585262,130.75,130.68,7.6518]
[1725246550119,7.6495,130.73,130.68,7.6518]
[1725246550318,0.8869262,130.72,130.68,7.6518]
[1725246550527,8.5369262,130.72,130.68,7.6518]
[1725246550711,37.74783674,130.75,130.67,19.1315]
[1725246550712,8.5374262,130.71,130.67,19.1315]
[1725246550914,8.5368262,130.72,130.68,1.53043745]
[1725246551111,7.6499,130.72,130.68,1.53043745]
[1725246551328,7.6499,130.72,130.68,9.18263745]
[1725246552212,14.7068262,130.75,130.7,19.1277]
[1725246553422,14.7068262,130.75,130.7,26.7787]
[1725246553719,7.6487,130.74,130.7,26.7787]
[1725246555127,7.6493,130.73,130.68,7.6521]
[1725246555330,0.8869262,130.74,130.65,39.46924514]
[1725246555522,13.8199,130.75,130.71,7.6499]
[1725246555726,13.8199,130.75,130.7,26.778]
[1725246555915,0.8869262,130.74,130.7,26.778]
[1725246556535,0.8869262,130.74,130.7,26.7779]
[1725246556838,8.5357262,130.74,130.7,26.7779]
[1725246557207,0.8869262,130.73,130.7,19.127]
[1725246557414,8.5357262,130.74,130.7,19.127]
[1725246557627,0.8869262,130.73,130.7,19.127]
[1725246557838,14.7068262,130.75,130.7,26.7778]
[1725246558333,14.7068262,130.75,130.71,7.6504]
[1725246558835,14.7068262,130.75,130.7,26.778]
[1725246559431,7.6489,130.74,130.7,26.778]
[1725246559620,7.0585262,130.75,130.7,26.778]
[1725246559621,14.7066262,130.75,130.7,26.778]
[1725246559828,14.7066262,130.75,130.62,15.9802]
[1725246559829,39.46924514,130.74,130.62,15.9802]
[1725246560040,39.46924514,130.72,130.64,7.6541]
[1725246560241,7.6527,130.68,130.63,7.655]
[1725246560433,0.8869262,130.67,130.62,19.1386]
[1725246560619,8.5398262,130.67,130.63,7.6551]
[1725246561015,0.8869262,130.67,130.63,7.6551]
[1725246561375,8.5398262,130.67,130.62,26.7942]
[1725246561535,6.0246,130.68,130.63,7.6548]
[1725246561839,0.8869262,130.67,130.63,7.6548]
[1725246563024,14.5638262,130.68,130.63,7.6548]
[1725246563221,14.5638262,130.68,130.63,9.18552957]
[1725246563440,0.8869262,130.7,130.66,7.6533]
[1725246563739,8.5380262,130.7,130.66,7.6533]
[1725246563915,0.8869262,130.7,130.64,19.1355]